[Event "New Zealand Rapid Championship"]
[Site "Wellington"]
[Date "2023.01.12"]
[Round "6.14"]
[White "Loke, Kayden"]
[Black "McDonald, Duncan"]
[Result "1/2-1/2"]
[TimeControl "25+5"]
[WhiteFideId "4313186"]
[BlackFideId "4314433"]
[WhiteElo "1907"]
[BlackElo "1372"]

1. e4 {[%clk 00:25:10]} c5 {[%clk 00:25:09]} {[%emt 00:00:03]} 2. Nf3 {[%clk
00:25:11]} {[%emt 00:00:03]} Nc6 {[%clk 00:25:12]} {[%emt 00:00:02]} 3. c3
{[%clk 00:25:15]} {[%emt 00:00:02]} Nf6 {[%clk 00:25:15]} {[%emt 00:00:01]} 4.
Bd3 {[%clk 00:25:17]} {[%emt 00:00:03]} d5 {[%clk 00:25:08]} {[%emt 00:00:12]}
5. exd5 {[%clk 00:25:19]} {[%emt 00:00:05]} Nxd5 {[%clk 00:25:11]} 6. Bc2
{[%clk 00:25:17]} {[%emt 00:00:07]} e5 {[%clk 00:24:40]} {[%emt 00:00:35]} 7.
O-O {[%clk 00:25:19]} {[%emt 00:00:03]} Bd6 {[%clk 00:24:35]} {[%emt 00:00:10]}
8. d4 {[%clk 00:25:22]} {[%emt 00:00:02]} cxd4 {[%clk 00:24:14]} {[%emt
00:00:26]} 9. cxd4 {[%clk 00:25:26]} {[%emt 00:00:01]} exd4 {[%clk 00:24:09]}
{[%emt 00:00:12]} 10. Re1+ {[%clk 00:25:27]} {[%emt 00:00:03]} Be6 {[%clk
00:23:03]} {[%emt 00:01:11]} 11. Bf5 {[%clk 00:25:26]} {[%emt 00:00:05]} Qf6
{[%clk 00:21:21]} {[%emt 00:01:46]} 12. Bxe6 {[%clk 00:25:18]} {[%emt
00:00:14]} fxe6 {[%clk 00:21:14]} {[%emt 00:00:11]} 13. Ng5 {[%clk 00:25:04]}
{[%emt 00:00:19]} e5 {[%clk 00:19:38]} {[%emt 00:01:41]} 14. Ne4 {[%clk
00:25:03]} {[%emt 00:00:06]} Qe7 {[%clk 00:18:44]} {[%emt 00:00:59]} 15. Bg5
{[%clk 00:25:05]} {[%emt 00:00:04]} Nf6 {[%clk 00:17:21]} {[%emt 00:01:29]} 16.
Nbd2 {[%clk 00:25:09]} {[%emt 00:00:01]} O-O {[%clk 00:15:40]} {[%emt
00:01:45]} 17. Nxf6+ {[%clk 00:24:22]} {[%emt 00:00:52]} gxf6 {[%clk 00:15:40]}
{[%emt 00:00:06]} 18. Bh6 {[%clk 00:24:22]} {[%emt 00:00:04]} Rf7 {[%clk
00:14:56]} {[%emt 00:00:49]} 19. f4 {[%clk 00:23:43]} {[%emt 00:00:44]} Qd7
{[%clk 00:14:35]} {[%emt 00:00:26]} 20. Ne4 {[%clk 00:23:26]} {[%emt 00:00:22]}
Bf8 {[%clk 00:14:15]} {[%emt 00:00:25]} 21. Qh5 {[%clk 00:23:20]} {[%emt
00:00:11]} Bxh6 {[%clk 00:12:01]} {[%emt 00:02:20]} 22. Qxh6 {[%clk 00:23:24]}
{[%emt 00:00:01]} Qe7 {[%clk 00:11:13]} {[%emt 00:00:53]} 23. f5 {[%clk
00:23:03]} {[%emt 00:00:26]} Kh8 {[%clk 00:10:31]} {[%emt 00:00:47]} 24. a4
{[%clk 00:23:03]} {[%emt 00:00:06]} Rg8 {[%clk 00:10:13]} {[%emt 00:00:23]} 25.
Ra3 {[%clk 00:23:03]} {[%emt 00:00:04]} Qf8 {[%clk 00:10:10]} {[%emt 00:00:09]}
26. Rh3 {[%clk 00:22:55]} {[%emt 00:00:13]} Qg7 {[%clk 00:09:11]} {[%emt
00:01:04]} 27. g3 {[%clk 00:22:44]} {[%emt 00:00:16]} Qxh6 {[%clk 00:09:14]}
{[%emt 00:00:02]} 28. Rxh6 {[%clk 00:22:46]} {[%emt 00:00:03]} Kg7 {[%clk
00:09:17]} {[%emt 00:00:02]} 29. Rh4 {[%clk 00:22:36]} {[%emt 00:00:15]} Rd8
{[%clk 00:09:02]} {[%emt 00:00:20]} 30. Nc5 {[%clk 00:22:25]} {[%emt 00:00:16]}
Rd6 {[%clk 00:08:06]} {[%emt 00:01:01]} 31. Ne6+ {[%clk 00:22:23]} {[%emt
00:00:07]} Kh8 {[%clk 00:07:28]} {[%emt 00:00:42]} 32. Kf2 {[%clk 00:22:13]}
{[%emt 00:00:15]} Nd8 {[%clk 00:07:29]} {[%emt 00:00:05]} 33. Nc5 {[%clk
00:22:10]} {[%emt 00:00:08]} Rc7 {[%clk 00:05:40]} {[%emt 00:01:53]} 34. b4
{[%clk 00:22:06]} {[%emt 00:00:09]} b6 {[%clk 00:05:30]} {[%emt 00:00:15]} 35.
Ne4 {[%clk 00:22:04]} {[%emt 00:00:07]} Rc2+ {[%clk 00:05:28]} {[%emt
00:00:07]} 36. Kf1 {[%clk 00:21:44]} {[%emt 00:00:26]} Rdc6 {[%clk 00:04:41]}
{[%emt 00:00:53]} 37. b5 {[%clk 00:21:44]} {[%emt 00:00:04]} Rc7 {[%clk
00:03:54]} {[%emt 00:00:52]} 38. Nxf6 {[%clk 00:21:43]} {[%emt 00:00:06]} Rf7
{[%clk 00:03:37]} {[%emt 00:00:22]} 39. Rxe5 {[%clk 00:20:45]} {[%emt
00:01:03]} Rxf6 {[%clk 00:03:38]} {[%emt 00:00:04]} 40. Re8+ {[%clk 00:20:34]}
{[%emt 00:00:16]} Kg7 {[%clk 00:03:42]} 41. Rxd8 {[%clk 00:20:07]} {[%emt
00:00:32]} Rxf5+ {[%clk 00:03:45]} {[%emt 00:00:02]} 42. Kg1 {[%clk 00:20:03]}
{[%emt 00:00:09]} Re5 {[%clk 00:03:15]} {[%emt 00:00:36]} 43. Rg4+ {[%clk
00:19:38]} {[%emt 00:00:29]} Kh6 {[%clk 00:02:34]} {[%emt 00:00:46]} 44. Rh4+
{[%clk 00:19:15]} {[%emt 00:00:28]} Kg6 {[%clk 00:01:56]} {[%emt 00:00:43]} 45.
Rg4+ {[%clk 00:18:49]} {[%emt 00:00:31]} Kh5 {[%clk 00:01:58]} {[%emt
00:00:03]} 46. Rh4+ {[%clk 00:18:43]} {[%emt 00:00:11]} Kg6 {[%clk 00:02:00]}
{[%emt 00:00:03]} 47. Rf4 {[%clk 00:18:02]} {[%emt 00:00:46]} Re1+ {[%clk
00:01:33]} {[%emt 00:00:34]} 48. Rf1 {[%clk 00:18:03]} {[%emt 00:00:04]} Ree2
{[%clk 00:01:37]} {[%emt 00:00:01]} 49. Rd6+ {[%clk 00:17:36]} {[%emt
00:00:31]} Kg5 {[%clk 00:01:40]} {[%emt 00:00:02]} 50. Rd5+ {[%clk 00:17:03]}
{[%emt 00:00:38]} Kg6 {[%clk 00:01:43]} {[%emt 00:00:02]} 51. Rd1 {[%clk
00:17:00]} {[%emt 00:00:08]} Rg2+ {[%clk 00:01:43]} {[%emt 00:00:05]} 52. Kf1
{[%clk 00:16:48]} {[%emt 00:00:17]} Rxh2 {[%clk 00:01:11]} {[%emt 00:00:37]} 53.
Kg1 {[%clk 00:16:45]} {[%emt 00:00:08]} Rhg2+ {[%clk 00:01:09]} {[%emt
00:00:07]} 54. Kh1 {[%clk 00:16:41]} {[%emt 00:00:09]} Rh2+ {[%clk 00:00:49]}
{[%emt 00:00:26]} 55. Kg1 {[%clk 00:16:42]} {[%emt 00:00:04]} Rhg2+ {[%clk
00:00:53]} {[%emt 00:00:01]} 56. Kf1 {[%clk 00:16:32]} {[%emt 00:00:14]} Rgf2+
{[%clk 00:00:53]} {[%emt 00:00:05]} 1/2-1/2

[Event "New Zealand Rapid Championship"]
[Site "Wellington"]
[ePGN "0.1;DGT LiveChess/2.2.5"]
[Date "2023.01.12"]
[Round "7.1"]
[White "Shoker, Samy"]
[Black "Xie, Felix"]
[Result "1-0"]
[TimeControl "25+5"]
[WhiteTitle "GM"]
[BlackTitle "CM"]
[WhiteFideId "627143"]
[BlackFideId "4308174"]
[WhiteElo "2440"]
[BlackElo "2232"]

1. Nf3 {[%clk 00:25:09]} {[%emt 00:00:01]} d5 {[%clk 00:25:08]} {[%emt
00:00:02]} 2. g3 {[%clk 00:25:12]} {[%emt 00:00:02]} c6 {[%clk 00:25:12]}
{[%emt 00:00:02]} 3. Bg2 {[%clk 00:25:16]} {[%emt 00:00:01]} Nf6 {[%clk
00:25:15]} {[%emt 00:00:01]} 4. O-O {[%clk 00:25:18]} {[%emt 00:00:03]} Bg4
{[%clk 00:25:18]} {[%emt 00:00:01]} 5. d3 {[%clk 00:25:22]} {[%emt 00:00:02]}
Nbd7 {[%clk 00:25:20]} {[%emt 00:00:03]} 6. Nbd2 {[%clk 00:25:25]} {[%emt
00:00:01]} e5 {[%clk 00:24:58]} {[%emt 00:00:28]} 7. e4 {[%clk 00:25:29]}
{[%emt 00:00:02]} dxe4 {[%clk 00:24:52]} {[%emt 00:00:11]} 8. dxe4 {[%clk
00:25:33]} Be7 {[%clk 00:24:54]} {[%emt 00:00:02]} 9. h3 {[%clk 00:25:36]}
{[%emt 00:00:02]} Bh5 {[%clk 00:24:51]} {[%emt 00:00:07]} 10. Qe1 {[%clk
00:25:39]} {[%emt 00:00:02]} O-O {[%clk 00:24:50]} {[%emt 00:00:07]} 11. a4
{[%clk 00:25:42]} {[%emt 00:00:02]} a5 {[%clk 00:24:41]} {[%emt 00:00:14]} 12.
Nh4 {[%clk 00:24:11]} {[%emt 00:01:35]} Re8 {[%clk 00:24:13]} {[%emt 00:00:33]}
13. Nf5 {[%clk 00:23:57]} {[%emt 00:00:18]} Bf8 {[%clk 00:24:10]} {[%emt
00:00:08]} 14. Nc4 {[%clk 00:23:40]} {[%emt 00:00:22]} Qc7 {[%clk 00:24:02]}
{[%emt 00:00:14]} 15. b3 {[%clk 00:22:39]} {[%emt 00:01:06]} Nc5 {[%clk
00:19:49]} {[%emt 00:04:18]} 16. Bb2 {[%clk 00:21:54]} {[%emt 00:00:50]} Nfd7
{[%clk 00:19:52]} {[%emt 00:00:02]} 17. h4 {[%clk 00:19:28]} {[%emt 00:02:31]}
Ne6 {[%clk 00:18:58]} {[%emt 00:00:59]} 18. Bc3 {[%clk 00:18:56]} {[%emt
00:00:37]} b6 {[%clk 00:18:38]} {[%emt 00:00:25]} 19. f3 {[%clk 00:17:02]}
{[%emt 00:01:59]} Bc5+ {[%clk 00:17:54]} {[%emt 00:00:49]} 20. Kh2 {[%clk
00:16:46]} {[%emt 00:00:22]} f6 {[%clk 00:17:42]} {[%emt 00:00:16]} 21. Rd1
{[%clk 00:16:20]} {[%emt 00:00:31]} Ndf8 {[%clk 00:16:18]} {[%emt 00:01:30]} 22.
Bh3 {[%clk 00:12:50]} {[%emt 00:03:35]} Rad8 {[%clk 00:15:46]} {[%emt
00:00:36]} 23. Qe2 {[%clk 00:12:47]} {[%emt 00:00:09]} Bf7 {[%clk 00:12:54]}
{[%emt 00:02:57]} 24. Rxd8 {[%clk 00:09:32]} {[%emt 00:03:20]} Rxd8 {[%clk
00:12:58]} {[%emt 00:00:01]} 25. Rd1 {[%clk 00:09:31]} {[%emt 00:00:06]} Ng6
{[%clk 00:10:22]} {[%emt 00:02:41]} 26. Be1 {[%clk 00:07:15]} {[%emt 00:02:22]}
Nd4 {[%clk 00:07:53]} {[%emt 00:02:34]} 27. Nxd4 {[%clk 00:07:15]} {[%emt
00:00:04]} Bxd4 {[%clk 00:07:57]} 28. Bf1 {[%clk 00:04:42]} {[%emt 00:02:37]}
Kh8 {[%clk 00:07:31]} {[%emt 00:00:32]} 29. Kg2 {[%clk 00:04:31]} {[%emt
00:00:16]} Nf8 {[%clk 00:05:14]} {[%emt 00:02:23]} 30. c3 {[%clk 00:03:42]}
{[%emt 00:00:53]} Bc5 {[%clk 00:05:18]} 31. Rc1 {[%clk 00:03:01]} {[%emt
00:00:45]} Ne6 {[%clk 00:04:42]} {[%emt 00:00:41]} 32. b4 {[%clk 00:02:31]}
{[%emt 00:00:35]} axb4 {[%clk 00:03:05]} {[%emt 00:01:42]} 33. cxb4 {[%clk
00:02:35]} Nd4 {[%clk 00:03:10]} 34. Qb2 {[%clk 00:02:39]} Be7 {[%clk
00:03:08]} {[%emt 00:00:06]} 35. a5 {[%clk 00:02:27]} {[%emt 00:00:17]} b5
{[%clk 00:02:05]} {[%emt 00:01:09]} 36. Ne3 {[%clk 00:02:21]} {[%emt 00:00:10]}
Qa7 {[%clk 00:01:47]} {[%emt 00:00:23]} 37. Bf2 {[%clk 00:02:24]} {[%emt
00:00:01]} Qb7 {[%clk 00:00:52]} {[%emt 00:01:01]} 38. Qc3 {[%clk 00:02:02]}
{[%emt 00:00:27]} Rc8 {[%clk 00:00:48]} {[%emt 00:00:10]} 39. Nc2 {[%clk
00:01:42]} {[%emt 00:00:24]} Ne6 {[%clk 00:00:36]} {[%emt 00:00:17]} 40. Ra1
{[%clk 00:01:34]} {[%emt 00:00:13]} Ra8 {[%emt 00:00:11]} 41. Rd1 {[%clk
00:01:36]} Rc8 {[%clk 00:00:24]} {[%emt 00:00:14]} 42. Qa1 {[%clk 00:00:57]}
{[%emt 00:00:44]} c5 {[%clk 00:00:13]} {[%emt 00:00:18]} 43. a6 {[%clk
00:00:54]} {[%emt 00:00:07]} Qb6 {[%clk 00:00:17]} 44. Rd7 {[%clk 00:00:49]}
{[%emt 00:00:10]} Rc7 {[%emt 00:00:17]} 45. a7 {[%clk 00:00:51]} {[%emt
00:00:02]} Rxd7 {[%clk 00:00:10]} 46. a8=Q+ {[%clk 00:00:54]} {[%emt 00:00:02]}
Rd8 {[%clk 00:00:15]} {[%emt 00:00:01]} 47. Q8a7 {[%clk 00:00:25]} {[%emt
00:00:33]} Qd6 {[%clk 00:00:13]} {[%emt 00:00:07]} 48. bxc5 {[%clk 00:00:22]}
{[%emt 00:00:08]} Nxc5 {[%clk 00:00:08]} {[%emt 00:00:10]} 49. Qxc5 {[%clk
00:00:10]} {[%emt 00:00:16]} Qe6 {[%clk 00:00:08]} {[%emt 00:00:06]} 50. Qxb5
{[%clk 00:00:11]} {[%emt 00:00:04]} Bh5 {[%clk 00:00:12]} {[%emt 00:00:01]} 51.
Qe2 {[%clk 00:00:13]} {[%emt 00:00:02]} Qc6 {[%clk 00:00:14]} {[%emt 00:00:04]}
52. Qaa6 {[%clk 00:00:17]} Qc3 {[%clk 00:00:14]} {[%emt 00:00:05]} 53. Ne3
{[%clk 00:00:21]} {[%emt 00:00:01]} Bf7 {[%clk 00:00:14]} {[%emt 00:00:04]} 54.
Qb7 {[%clk 00:00:23]} {[%emt 00:00:02]} Re8 {[%clk 00:00:15]} {[%emt 00:00:05]}
55. Qeb2 {[%clk 00:00:25]} {[%emt 00:00:02]} Qc5 {[%clk 00:00:10]} {[%emt
00:00:11]} 56. Nf5 {[%clk 00:00:29]} {[%emt 00:00:01]} 1-0

[Event "New Zealand Rapid Championship"]
[Site "Wellington"]
[Date "2023.01.12"]
[Round "7.2"]
[White "Ker, Anthony F"]
[Black "Hague, Ben"]
[Result "1/2-1/2"]
[TimeControl "25+5"]
[WhiteTitle "IM"]
[BlackTitle "FM"]
[WhiteFideId "4300084"]
[BlackFideId "405647"]
[WhiteElo "2359"]
[BlackElo "2410"]

1. e4 {[%clk 00:25:07]} {[%emt 00:00:02]} Nf6 {[%clk 00:25:06]} {[%emt
00:00:04]} 2. e5 {[%clk 00:25:06]} {[%emt 00:00:06]} Nd5 {[%clk 00:25:09]}
{[%emt 00:00:02]} 3. d4 {[%clk 00:25:04]} {[%emt 00:00:07]} d6 {[%clk
00:25:12]} {[%emt 00:00:02]} 4. c4 {[%clk 00:25:03]} {[%emt 00:00:07]} Nb6
{[%clk 00:25:14]} {[%emt 00:00:02]} 5. f4 {[%clk 00:25:02]} {[%emt 00:00:06]}
g6 {[%clk 00:25:02]} {[%emt 00:00:17]} 6. Nc3 {[%clk 00:24:58]} {[%emt
00:00:10]} Bg7 {[%clk 00:25:02]} {[%emt 00:00:04]} 7. Be3 {[%clk 00:24:18]}
{[%emt 00:00:46]} Be6 {[%clk 00:24:47]} {[%emt 00:00:18]} 8. d5 {[%clk
00:24:06]} {[%emt 00:00:18]} Bc8 {[%clk 00:24:46]} {[%emt 00:00:06]} 9. Nf3
{[%clk 00:23:42]} {[%emt 00:00:29]} c6 {[%clk 00:24:30]} {[%emt 00:00:20]} 10.
Be2 {[%clk 00:22:02]} {[%emt 00:01:45]} dxe5 {[%clk 00:23:39]} {[%emt
00:00:57]} 11. fxe5 {[%clk 00:21:59]} {[%emt 00:00:08]} Bg4 {[%clk 00:23:25]}
{[%emt 00:00:19]} 12. Qd4 {[%clk 00:21:31]} {[%emt 00:00:34]} Bxf3 {[%clk
00:23:05]} {[%emt 00:00:25]} 13. gxf3 {[%clk 00:21:30]} {[%emt 00:00:06]} cxd5
{[%clk 00:21:59]} {[%emt 00:01:11]} 14. cxd5 {[%clk 00:21:27]} {[%emt
00:00:08]} N8d7 {[%clk 00:21:57]} {[%emt 00:00:07]} 15. f4 {[%clk 00:21:21]}
{[%emt 00:00:12]} O-O {[%clk 00:20:56]} {[%emt 00:01:06]} 16. O-O-O {[%clk
00:19:22]} {[%emt 00:02:04]} Rc8 {[%clk 00:20:18]} {[%emt 00:00:42]} 17. Kb1
{[%clk 00:19:22]} {[%emt 00:00:06]} Qc7 {[%clk 00:16:50]} {[%emt 00:03:34]} 18.
Rc1 {[%clk 00:19:02]} {[%emt 00:00:24]} Qc5 {[%clk 00:15:06]} {[%emt 00:01:49]}
19. Qe4 {[%clk 00:17:59]} {[%emt 00:01:08]} Qa5 {[%clk 00:14:56]} {[%emt
00:00:15]} 20. h4 {[%clk 00:16:31]} {[%emt 00:01:33]} Nc5 {[%clk 00:14:38]}
{[%emt 00:00:22]} 21. Bxc5 {[%clk 00:15:15]} {[%emt 00:01:22]} Qxc5 {[%clk
00:14:19]} {[%emt 00:00:24]} 22. h5 {[%clk 00:15:14]} {[%emt 00:00:07]} Nc4
{[%clk 00:14:15]} {[%emt 00:00:09]} 23. Bxc4 {[%clk 00:14:07]} {[%emt
00:01:12]} Qxc4 {[%clk 00:14:18]} {[%emt 00:00:02]} 24. Qf3 {[%clk 00:14:00]}
{[%emt 00:00:12]} Rfd8 {[%clk 00:12:11]} {[%emt 00:02:11]} 25. hxg6 {[%clk
00:13:15]} {[%emt 00:00:51]} hxg6 {[%clk 00:12:14]} {[%emt 00:00:02]} 26. e6
{[%clk 00:11:57]} {[%emt 00:01:24]} fxe6 {[%clk 00:11:16]} {[%emt 00:01:03]} 27.
Qh3 {[%clk 00:11:34]} {[%emt 00:00:28]} exd5 {[%clk 00:10:44]} {[%emt
00:00:37]} 28. Qe6+ {[%clk 00:10:42]} {[%emt 00:00:57]} Kf8 {[%clk 00:10:45]}
{[%emt 00:00:03]} 29. Qxg6 {[%clk 00:10:32]} {[%emt 00:00:16]} Rc6 {[%clk
00:07:52]} {[%emt 00:02:58]} 30. Qh7 {[%clk 00:09:53]} {[%emt 00:00:45]} Rdd6
{[%clk 00:06:49]} {[%emt 00:01:08]} 31. Qf5+ {[%clk 00:06:23]} {[%emt
00:03:34]} Rf6 {[%clk 00:05:50]} {[%emt 00:01:04]} 32. Qxd5 {[%clk 00:06:06]}
{[%emt 00:00:22]} Qxd5 {[%clk 00:04:59]} {[%emt 00:00:56]} 33. Nxd5 {[%clk
00:06:11]} Rf5 {[%clk 00:04:21]} {[%emt 00:00:42]} 34. Rxc6 {[%clk 00:04:11]}
{[%emt 00:02:05]} bxc6 {[%clk 00:04:25]} {[%emt 00:00:02]} 35. Nb4 {[%clk
00:04:10]} {[%emt 00:00:05]} Rxf4 {[%clk 00:03:54]} {[%emt 00:00:36]} 36. Nd3
{[%clk 00:03:19]} {[%emt 00:00:57]} Rf3 {[%clk 00:03:53]} {[%emt 00:00:06]} 37.
Kc2 {[%clk 00:03:22]} {[%emt 00:00:02]} Rg3 {[%clk 00:03:29]} {[%emt 00:00:28]}
38. Rh2 {[%clk 00:03:07]} {[%emt 00:00:21]} Ke8 {[%clk 00:03:19]} {[%emt
00:00:15]} 39. b4 {[%clk 00:02:53]} {[%emt 00:00:19]} Rg1 {[%clk 00:03:01]}
{[%emt 00:00:22]} 40. a4 {[%clk 00:02:35]} {[%emt 00:00:24]} Bd4 {[%clk
00:02:47]} {[%emt 00:00:19]} 41. Kb3 {[%clk 00:02:25]} {[%emt 00:00:15]} e5
{[%clk 00:02:41]} {[%emt 00:00:10]} 42. Re2 {[%clk 00:02:27]} {[%emt 00:00:03]}
Rg5 {[%clk 00:02:32]} {[%emt 00:00:15]} 43. Kc4 {[%clk 00:02:30]} {[%emt
00:00:01]} Kd7 {[%clk 00:02:29]} {[%emt 00:00:07]} 44. Rh2 {[%clk 00:02:22]}
{[%emt 00:00:13]} Rg4 {[%clk 00:02:26]} {[%emt 00:00:08]} 45. Rh7+ {[%clk
00:01:55]} {[%emt 00:00:32]} Kd6 {[%clk 00:02:29]} {[%emt 00:00:03]} 46. Rh6+
{[%clk 00:01:58]} {[%emt 00:00:01]} Ke7 {[%clk 00:01:51]} {[%emt 00:00:43]} 47.
Rh7+ {[%clk 00:02:02]} {[%emt 00:00:01]} Kf6 {[%clk 00:01:42]} {[%emt
00:00:14]} 48. Rh6+ {[%clk 00:02:04]} {[%emt 00:00:03]} Kf5 {[%clk 00:01:22]}
{[%emt 00:00:26]} 49. Rxc6 {[%clk 00:02:04]} {[%emt 00:00:05]} Bb6+ {[%clk
00:01:24]} {[%emt 00:00:03]} 50. Kb5 {[%clk 00:01:53]} {[%emt 00:00:16]} e4
{[%clk 00:01:28]} {[%emt 00:00:01]} 51. Nc1 {[%clk 00:01:45]} {[%emt 00:00:13]}
e3 {[%clk 00:01:23]} {[%emt 00:00:10]} 52. a5 {[%clk 00:01:48]} {[%emt
00:00:03]} Bd4 {[%clk 00:01:26]} 53. Ne2 {[%clk 00:01:48]} {[%emt 00:00:05]}
Be5 {[%clk 00:01:09]} {[%emt 00:00:22]} 54. Rc5 {[%clk 00:01:05]} {[%emt
00:00:49]} Rg2 {[%clk 00:01:02]} {[%emt 00:00:12]} 55. Nd4 {[%clk 00:01:03]}
{[%emt 00:00:08]} Ke4 {[%clk 00:01:06]} 56. Nc6 {[%clk 00:00:52]} {[%emt
00:00:16]} Bf6 {[%clk 00:00:48]} {[%emt 00:00:23]} 57. Nxa7 {[%clk 00:00:50]}
{[%emt 00:00:07]} e2 {[%clk 00:00:52]} 58. Rc1 {[%clk 00:00:51]} {[%emt
00:00:04]} Bc3 {[%clk 00:00:38]} {[%emt 00:00:20]} 59. Nc6 {[%clk 00:00:45]}
{[%emt 00:00:09]} e1=Q {[%emt 00:00:10]} 60. Rxe1+ {[%clk 00:00:49]} Bxe1
{[%clk 00:00:38]} {[%emt 00:00:02]} 61. a6 {[%clk 00:00:53]} {[%emt 00:00:01]}
Rg5+ {[%clk 00:00:30]} {[%emt 00:00:12]} 62. Kb6 {[%clk 00:00:55]} {[%emt
00:00:03]} Bf2+ {[%clk 00:00:34]} 63. Kb7 {[%clk 00:00:50]} {[%emt 00:00:10]}
Rb5+ {[%clk 00:00:38]} {[%emt 00:00:03]} 64. Kc8 {[%clk 00:00:42]} {[%emt
00:00:12]} Kd5 {[%clk 00:00:32]} {[%emt 00:00:11]} 65. a7 {[%clk 00:00:42]}
{[%emt 00:00:05]} Bxa7 {[%clk 00:00:35]} {[%emt 00:00:02]} 66. Nxa7 {[%clk
00:00:46]} {[%emt 00:00:02]} Rxb4 {[%clk 00:00:38]} {[%emt 00:00:02]} 67. Kc7
{[%clk 00:00:45]} {[%emt 00:00:05]} Kc5 {[%clk 00:00:28]} {[%emt 00:00:15]} 68.
Nc8 {[%clk 00:00:40]} {[%emt 00:00:10]} Rh4 {[%clk 00:00:29]} {[%emt 00:00:04]}
69. Kd7 {[%clk 00:00:39]} {[%emt 00:00:05]} Rh7+ {[%clk 00:00:32]} {[%emt
00:00:02]} 70. Ne7 {[%clk 00:00:43]} {[%emt 00:00:01]} Rh6 {[%clk 00:00:28]}
{[%emt 00:00:09]} 71. Nf5 {[%clk 00:00:43]} {[%emt 00:00:05]} Rf6 {[%clk
00:00:30]} {[%emt 00:00:03]} 72. Ne7 {[%clk 00:00:45]} {[%emt 00:00:03]} Ra6
{[%clk 00:00:21]} {[%emt 00:00:15]} 73. Nc8 {[%clk 00:00:45]} {[%emt 00:00:05]}
Kd5 {[%clk 00:00:20]} {[%emt 00:00:06]} 74. Ne7+ {[%clk 00:00:49]} {[%emt
00:00:02]} Ke5 {[%clk 00:00:23]} {[%emt 00:00:02]} 75. Nc6+ {[%emt 00:00:09]}
Kd5 {[%clk 00:00:20]} {[%emt 00:00:02]} 76. Ne7+ {[%clk 00:00:54]} {[%emt
00:00:02]} Kc5 {[%clk 00:00:22]} {[%emt 00:00:03]} 77. Nc8 {[%clk 00:00:58]}
{[%emt 00:00:02]} Rh6 {[%clk 00:00:19]} {[%emt 00:00:07]} 78. Ne7 {[%clk
00:01:00]} {[%emt 00:00:04]} Rh7 {[%clk 00:00:18]} {[%emt 00:00:06]} 79. Ke6
{[%clk 00:01:04]} {[%emt 00:00:01]} Rxe7+ {[%clk 00:00:22]} {[%emt 00:00:01]}
80. Kxe7 {[%clk 00:00:56]} 1/2-1/2